Cogmind - Beta 9.4 @@@ ROGUE MODE // 2020.01.22 @ 11:54:31 Player: Pimski Result: Destroyed by P1-3CE with P1-3CE's Gatling Flakker Performance ------------- Evolutions (1) 500 Regions Visited (6) 1200 Robots Destroyed (52) 260 Value Destroyed (807) 807 Prototype IDs (26) 520 Alien Tech Used (0) 0 Bonus (-1174) -1174 TOTAL SCORE: 2113 Bonus ------- Aligned with FarCom 300 Friendly Fire -1474 Cogmind --------- Core Integrity 0/400 Matter 290/300 Energy 84/100 System Corruption 7% Temperature Cool (0) Movement Rolling (140) Ox5 Location -8/Mines Parts ------- > --- POWER (1) -------- (None) > --- PROPULSION (2) --- Armored Wheel > --- UTILITY (4) ------ High-capacity Storage Unit Medium Armor Plating 8R-AWN's Armor/EX > --- WEAPON (2) ------- Mining Claw > --- INVENTORY (12) --- Light Treads Light Treads Improved Treads Experimental Targeting Computer Light Armor Plating 8R-AWN's Armor/TH 8R-AWN's Boregun 8R-AWN's Boregun Peak State ------------ > --- POWER ------------ (None) > --- PROPULSION ------- Light Treads Improved Treads > --- UTILITY ---------- High-capacity Storage Unit Medium Armor Plating 8R-AWN's Armor/TH > --- WEAPON ----------- Light Assault Rifle Mining Claw > --- INVENTORY -------- Light Treads Light Treads Improved Treads Armored Wheel Experimental Targeting Computer Light Armor Plating 8R-AWN's Armor/EX 8R-AWN's Boregun 8R-AWN's Boregun [Rating: 33] Favorites ----------- Power Fission Core Engine Light Ion Engine Power Core Fission Core Propulsion Light Treads Treads Light Treads Leg Aluminum Leg Wheel Armored Wheel Utility Large Storage Unit Device Advanced Weapon Cycler Storage Large Storage Unit Protection Improved Light Armor Plating Weapon Light Assault Rifle Energy Gun Small Laser Ballistic Gun Light Assault Rifle Launcher Rocket Launcher Slashing Weapon Mining Claw Build | -11 -10 -10 -9 -9 -9 -8 ------- Run | Scr Mat Min Mat Min Exi Min Slots Evolved 2 | . . . 2 . . . Power . | . . . . . . . Propulsion . | . . . . . . . Utility 2 | . . . 2 . . . Weapon . | . . . . . . . Parts Attached 52 | 1 3 3 15 7 19 4 Power 3 | . . . 1 2 . . Engine 2 | . . . 1 1 . . Core 1 | . . . . 1 . . Reactor . | . . . . . . . Propulsion 11 | . . 2 3 3 2 1 Treads 9 | . . 2 3 2 2 . Leg . | . . . . . . . Wheel 2 | . . . . 1 . 1 Hover . | . . . . . . . Flight . | . . . . . . . Utility 24 | 1 1 . 9 . 11 2 Device 1 | . . . . . 1 . Storage 8 | 1 1 . 3 . 3 . Processor . | . . . . . . . Hackware . | . . . . . . . Protection 15 | . . . 6 . 7 2 Artifact . | . . . . . . . Weapon 14 | . 2 1 2 2 6 1 Energy Gun 1 | . 1 . . . . . Energy Cannon . | . . . . . . . Ballistic Gun 8 | . 1 1 2 2 2 . Ballistic Cannon . | . . . . . . . Launcher 1 | . . . . . 1 . Special Weapon . | . . . . . . . Impact Weapon . | . . . . . . . Slashing Weapon 4 | . . . . . 3 1 Piercing Weapon . | . . . . . . . Special Melee Weapon . | . . . . . . . Unidentified Prototypes 2 | . . . . . . 2 Parts Lost 13 | . . . 2 2 6 3 Power 3 | . . . 1 1 1 . Propulsion 3 | . . . . . 1 2 Utility 3 | . . . . . 3 . Weapon 4 | . . . 1 1 1 1 Highest Loss Streak 5 | . . . 1 1 5 3 Average Slot Usage (%) 97 | . 100 99 98 99 96 75 Engine 5 | . 14 14 10 2 . . Core 4 | . . . . 8 8 . Treads 19 | . . 18 21 21 21 22 Leg 3 | . 28 9 . . . . Storage 25 | . 28 28 25 33 21 11 Protection 14 | . . . 17 11 21 22 Energy Gun 2 | . 20 5 . . . . Ballistic Gun 15 | . 7 22 21 22 7 9 Launcher 2 | . . . . . 5 . Slashing Weapon 4 | . . . . . 9 11 Naked Turns . | . . . . . . . Heaviest Build 86 | 15 18 18 55 57 86 65 Greatest Support 43 | 20 20 40 40 43 43 43 Greatest Overweight (x) 5 | . . . 2 4 1 5 Average Overweight (x) . | . . . . 1 . 1 Largest Inventory Capacity 20 | 8 10 10 20 20 20 20 Average Capacity 15 | 6 8 10 15 20 17 12 Most Carried 20 | 6 8 10 20 20 20 18 Average Carried 14 | 6 7 9 15 19 15 10 Final Capacity 20 | 8 10 10 20 20 20 12 Final Carried 20 | 6 8 10 20 20 20 9 Class Distribution -------------------- 50% | Hauler-Mutant 49% | Mutant Dominant Class ---------------- Mutant | -10/Materials Mutant | -10/Mines Mutant | -9/Materials Hauler-Mutant | -9/Mines Hauler-Mutant | -9/Exiles Mutant | -8/Mines Resources | -11 -10 -10 -9 -9 -9 -8 ----------- Run | Scr Mat Min Mat Min Exi Min Matter Collected 1428 | 210 42 148 371 282 355 20 Remotely . | . . . . . . . Salvage Created 1767 | 65 108 458 738 239 159 . Parts 85 | 1 2 21 43 14 4 . Haulers Intercepted 2 | . 1 . 1 . . . Recyclers Shooed . | . . . . . . . Parts Field Recycled . | . . . . . . . Retrieved Matter . | . . . . . . . Parts Self-Destructed . | . . . . . . . Prevented . | . . . . . . . Kills | -11 -10 -10 -9 -9 -9 -8 ------- Run | Scr Mat Min Mat Min Exi Min Combat Hostiles Destroyed 40 | . 1 6 16 11 6 . Melee 1 | . . . . . 1 . Guns 35 | . 1 6 16 11 1 . AOE 4 | . . . . . 4 . Classes Destroyed 9 | 1 2 2 3 1 . . Worker 2 | . . 1 . 1 . . Hauler 2 | . 1 . 1 . . . Recycler 4 | 1 . 2 . 1 . . Operator 1 | . . . 1 . . . Swarmer 11 | . . 3 3 5 . . Grunt 10 | . 1 3 6 . . . Brawler 2 | . . . 2 . . . Sentry 5 | . . . 5 . . . Assembled 13 | . . . . 6 7 . Best Kill Streak 6 | 1 1 4 6 4 5 . Combat Bots Only 6 | . 1 3 6 4 5 . Max Kills in Single Turn 3 | 1 1 1 2 1 3 . Gunslinging 1 | . . . 1 . . . Exploded 3 | . . . . . 3 . Melee 1 | . . . . . 1 . Uniques/NPCs Destroyed 1 | . . 1 . . . . YI-UF0 (-10/Mines) 8R-AWN (-9/Exiles) Combat | -11 -10 -10 -9 -9 -9 -8 -------- Run | Scr Mat Min Mat Min Exi Min Damage Taken 3307 | . 57 164 835 544 1124 583 Core 437 | . 11 24 81 41 118 162 Absorbed by Shields . | . . . . . . . Core Remaining (%) 93 | 100 . 86 . . . . Volleys Fired 162 | 4 11 32 57 49 9 . Largest 2 | 2 2 2 2 2 2 . Hottest 80 | 80 80 60 43 43 40 . Shots Fired 319 | 8 22 64 113 98 14 . Gun 315 | 8 22 64 113 98 10 . Cannon . | . . . . . . . Launcher 4 | . . . . . 4 . Special . | . . . . . . . Kinetic 279 | . 4 54 113 98 10 . Thermal 14 | . 4 10 . . . . Explosive 4 | . . . . . 4 . Electromagnetic 22 | 8 14 . . . . . Robot Hit Streak 23 | 3 4 13 23 11 4 . Robot Miss Streak 5 | 2 5 4 3 4 1 . Penetration Max . | . . . . . . . Secondary Targets 4 | . . 2 2 . . . Max Gunslinging Chain 1 | . . 1 1 . . . Shots Hit Robots 247 | 5 8 43 88 63 37 3 Core Hits 110 | 2 4 20 34 26 24 . Critical Hits 4 | . . . 2 1 1 . Critical Kills 1 | . . . 1 . . . Critical Parts Destroyed 3 | . . . 1 1 1 . Melee Attacks 42 | . . . . . 39 3 Impact . | . . . . . . . Slashing 42 | . . . . . 39 3 Piercing . | . . . . . . . Sneak Attacks . | . . . . . . . Combat Hostiles . | . . . . . . . Follow-up Attacks 7 | . . . . . 7 . Damage Inflicted 3291 | 112 122 457 1008 588 932 72 Guns 2276 | 67 122 457 996 567 67 . Cannons . | . . . . . . . Explosions 362 | 45 . . . . 317 . Melee 620 | . . . . . 548 72 Ramming 33 | . . . 12 21 . . Kinetic 2012 | . 14 368 996 567 67 . Thermal 179 | 45 45 89 . . . . Explosive 317 | . . . . . 317 . Electromagnetic 130 | 67 63 . . . . . Impact . | . . . . . . . Slashing 620 | . . . . . 548 72 Piercing . | . . . . . . . Highest Corruption 7 | . . . 4 7 7 7 Average Corruption 6 | . . . 4 6 7 7 Corruption Purged . | . . . . . . . Effects 97 | . . . 20 21 54 2 Message Errors 28 | . . . 4 4 19 1 Matter Fused 22 | . . . 4 3 15 . Heat Flow Errors 4 | . . . 1 1 2 . Energy Discharges 13 | . . . 3 4 6 . Data Loss (minor) 13 | . . . 3 2 7 1 Data Loss (major) 2 | . . . . . 2 . Targeting Errors 15 | . . . 5 7 3 . Overload Shots . | . . . . . . . Overflow Damage 20 | 20 . . . . . . Projectiles . | . . . . . . . Explosions 20 | 20 . . . . . . Melee . | . . . . . . . Knockbacks . | . . . . . . . Impact . | . . . . . . . Kinetic . | . . . . . . . Secondary . | . . . . . . . Self-Inflicted Damage . | . . . . . . . Shots . | . . . . . . . Rammed 2 | . . . 1 1 . . Targets Rammed 2 | . . . 1 1 . . Kicked . | . . . . . . . Crushed . | . . . . . . . Highest Temperature 283 | 74 120 6 275 151 283 . Average Temperature 37 | 36 53 6 30 17 103 . Received Heat Transfer 295 | . 30 33 192 40 . . Siege Activations . | . . . . . . . Robots Corrupted . | . . . . . . . Combat Hostiles . | . . . . . . . Parts Fried 1 | . 1 . . . . . Impact Corruptions . | . . . . . . . Robots Melted . | . . . . . . . Combat Hostiles . | . . . . . . . Parts Melted 1 | . . 1 . . . . Heat Transferred 350 | 50 100 200 . . . . Parts Sabotaged . | . . . . . . . Parts Stolen . | . . . . . . . Parts Stripped . | . . . . . . . Power Chain Reactions 1 | 1 . . . . . . Missiles Intercepted . | . . . . . . . Alert | -11 -10 -10 -9 -9 -9 -8 ------- Run | Scr Mat Min Mat Min Exi Min Peak Influence 314 | 5 82 116 314 157 . . Average Influence 73 | 3 40 61 106 70 . . Maximum Alert Level 1 | . . . 1 . . . Low Security (%) 98 | 100 100 100 96 100 . 100 Level 1 1 | . . . 3 . . . Level 2 . | . . . . . . . Level 3 . | . . . . . . . Level 4 . | . . . . . . . Level 5 . | . . . . . . . High Security . | . . . . . . . Max Security . | . . . . . . . Squads Dispatched 1 | . . . 1 . . . Investigation 1 | . . . 1 . . . Extermination . | . . . . . . . Reinforcement . | . . . . . . . Assault . | . . . . . . . Garrison . | . . . . . . . Intercept . | . . . . . . . Construction Impeded . | . . . . . . . Haulers Reinforced . | . . . . . . . Stealth | -11 -10 -10 -9 -9 -9 -8 --------- Run | Scr Mat Min Mat Min Exi Min Distress Signals 4 | . . . 4 . . . Communications Jammed . | . . . . . . . Distress Signals . | . . . . . . . Times Spotted 60 | . 4 8 24 16 7 1 Peak Tracking Total 8 | . 2 3 7 5 8 1 Tactical Retreats 5 | . . 1 2 1 1 . Traps | -11 -10 -10 -9 -9 -9 -8 ------- Run | Scr Mat Min Mat Min Exi Min Traps Triggered 1 | . . . 1 . . . Indirectly . | . . . . . . . Trap Hack Attempts . | . . . . . . . Triggered . | . . . . . . . Disarmed . | . . . . . . . Reprogrammed . | . . . . . . . Reused . | . . . . . . . Traps Extracted . | . . . . . . . Installed . | . . . . . . . Triggered . | . . . . . . . Machines | -11 -10 -10 -9 -9 -9 -8 ---------- Run | Scr Mat Min Mat Min Exi Min Machines Disabled 2 | . . . . . 2 . Max in Single Turn 2 | . . . . . 2 . Machines Sabotaged . | . . . . . . . Garrisons Compromised . | . . . . . . . Overloaded Fab Kills . | . . . . . . . Fab Network Shutdowns . | . . . . . . . Hacking | -11 -10 -10 -9 -9 -9 -8 --------- Run | Scr Mat Min Mat Min Exi Min Machines Accessed 14 | . 4 . 7 1 2 . Terminals 9 | . 4 . 4 1 . . Fabricators . | . . . . . . . Repair Stations . | . . . . . . . Recycling Units 1 | . . . 1 . . . Scanalyzers 2 | . . . 2 . . . Garrison Access . | . . . . . . . Total Hacks 43 | . 12 . 24 4 3 . Successful 23 | . 5 . 13 2 3 . Failed 20 | . 7 . 11 2 . . Catastrophic 5 | . 3 . 2 . . . Database Lockouts . | . . . . . . . Manual 30 | . 10 . 15 4 1 . Terminals 31 | . 12 . 15 4 . . Fabricators . | . . . . . . . Repair Stations . | . . . . . . . Recycling Units 2 | . . . 2 . . . Scanalyzers 7 | . . . 7 . . . Garrison Access . | . . . . . . . Terminal Hacks 11 | . 3 . 3 2 3 . Record 2 | . . . . . 2 . Robot Analysis 1 | . 1 . . . . . Prototype ID Bank 1 | . 1 . . . . . Level Access Points 1 | . . . . 1 . . Branch Access Points 2 | . 1 . 1 . . . Hauler Manifests 1 | . . . 1 . . . Zone Layout 2 | . . . 1 1 . . EX-Prototype ID Bank 1 | . . . . . 1 . Fabricator Hacks . | . . . . . . . Repair Station Hacks . | . . . . . . . Recycling Unit Hacks 1 | . . . 1 . . . Retrieve Components 1 | . . . 1 . . . Scanalyzer 6 | . . . 6 . . . Insert Component 3 | . . . 3 . . . Analyze 3 | . . . 3 . . . Garrison Access Hacks . | . . . . . . . Unauthorized Hacks 15 | . 4 . 11 . . . Terminals 5 | . 2 . 3 . . . Botnet 3 | . 1 . 2 . . . Disrupt 1 | . . . 1 . . . Operators 1 | . 1 . . . . . Fabricators . | . . . . . . . Repair Stations . | . . . . . . . Recycling Units . | . . . . . . . Scanalyzers . | . . . . . . . Garrison Access . | . . . . . . . Data Cores Recovered . | . . . . . . . Used . | . . . . . . . Hacking Detections 10 | . 4 . 5 1 . . Full Trace Events 1 | . 1 . . . . . Feedback Events . | . . . . . . . Feedback Blocked . | . . . . . . . Robot Schematics Acquired . | . . . . . . . Robots Built . | . . . . . . . Matter . | . . . . . . . Time . | . . . . . . . Total Robot Build Rating . | . . . . . . . Part Schematics Acquired 2 | . . . 2 . . . Parts Built . | . . . . . . . Matter . | . . . . . . . Time . | . . . . . . . Total Part Build Rating . | . . . . . . . Parts Repaired . | . . . . . . . Time . | . . . . . . . Parts Recycled . | . . . . . . . Recycled Matter . | . . . . . . . Retrieved Matter . | . . . . . . . Retrieved Components 2 | . . . 2 . . . Parts Scanalyzed 2 | . . . 2 . . . Part Schematics Acquired 2 | . . . 2 . . . Parts Damaged . | . . . . . . . Bothacking | -11 -10 -10 -9 -9 -9 -8 ------------ Run | Scr Mat Min Mat Min Exi Min Used RIF Installer . | . . . . . . . Robots Hacked . | . . . . . . . Non-combat . | . . . . . . . Combat . | . . . . . . . Robot Hacks Applied . | . . . . . . . Relay Couplers Released . | . . . . . . . Robots Rewired . | . . . . . . . Allies Hacked . | . . . . . . . Hacks Repelled . | . . . . . . . Allies | -11 -10 -10 -9 -9 -9 -8 -------- Run | Scr Mat Min Mat Min Exi Min Total Allies . | . . . . . . . Largest Group . | . . . . . . . Highest-Rated Group . | . . . . . . . Highest-Rated Ally . | . . . . . . . Total Orders . | . . . . . . . Ally Attacks . | . . . . . . . Total Damage . | . . . . . . . Kills . | . . . . . . . Allies Corrupted . | . . . . . . . Allies Melted . | . . . . . . . Intel | -11 -10 -10 -9 -9 -9 -8 ------- Run | Scr Mat Min Mat Min Exi Min Robot Analysis Total 1 | . 1 . . . . . Derelict Logs Recovered 3 | . . 2 . 1 . . Drone Launches . | . . . . . . . Drone Recoveries . | . . . . . . . Exploration | -11 -10 -10 -9 -9 -9 -8 ------------- Run | Scr Mat Min Mat Min Exi Min Turns Passed 4436 | 24 225 864 839 542 1847 95 Spaces Moved 2104 | 9 148 497 334 216 879 21 Core . | . . . . . . . Treads 1716 | . . 275 334 208 879 20 Legs 379 | 9 148 222 . . . . Wheels 9 | . . . . 8 . 1 Hover . | . . . . . . . Flight . | . . . . . . . Fastest Speed 120 | 120 120 120 160 130 160 140 Average Speed 164 | 120 120 142 175 178 177 178 Slowest Speed 200 | 120 120 160 200 180 180 180 Overloaded Moves . | . . . . . . . Propulsion Burnouts . | . . . . . . . Robots Hopped . | . . . . . . . Cave-ins Triggered . | . . . . . . . Exploration Rate (%) 37 | 2 32 93 32 22 68 11 Regions Visited 6 Branch Regions 4 Pre-discovered Areas 3 | . . 1 . 1 1 . Known Exits Taken 2 | . 1 . 1 . . . Unknown Exits Taken 4 | 1 . 1 . 1 1 . Scrap Searched 2 | . . 2 . . . . Spaces Dug . | . . . . . . . Terrain Destroyed 29 | 2 . . . . 27 . Melee . | . . . . . . . Projectile . | . . . . . . . AOE 29 | 2 . . . . 27 . Actions | -11 -10 -10 -9 -9 -9 -8 --------- Run | Scr Mat Min Mat Min Exi Min Total 2741 | 13 174 600 494 288 1094 78 Wait 258 | . 8 48 44 10 108 40 Move 2098 | 8 147 496 333 215 878 21 Hop . | . . . . . . . Pick Up 62 | . 2 11 25 2 22 . Fast Attach 10 | 1 1 1 3 2 2 . Attach 23 | . 1 2 5 1 11 3 Detach 2 | . 1 . . . . 1 Swap 19 | . 1 . 7 4 6 1 Drop 70 | . 2 10 19 4 26 9 Fire 162 | 4 11 32 57 49 9 . Melee 35 | . . . . . 32 3 Ram . | . . . . . . . Kick . | . . . . . . . Crush 2 | . . . 1 1 . . Escape Stasis . | . . . . . . . Rewire . | . . . . . . . Trap . | . . . . . . . Miscellaneous . | . . . . . . . Route ------- -11/Scrapyard -10/Materials (discovered 2 exits: *Min x2) -10/Mines (discovered 2 exits: *Mat x2) -9/Materials (discovered 3 exits: *Mat / *Min x2) -9/Mines (discovered 3 exits: Mat x2 / *Exi) -9/Exiles -8/Mines History --------- Turn | Location | Event 1 | -11/Scrapyard | Discovered new exit (range 2) 25 | -11/Scrapyard | Entered Materials 170 | -10/Materials | Identified exit to Mines 250 | -10/Materials | Entered Mines 307 | -10/Mines | Build established: Mutant 337 | -10/Mines | A weapon hastily lodged in a ceiling crevice suddenly fell to the ground 472 | -10/Mines | Learned location of Zion (-7) 533 | -10/Mines | Discovered new exit (range 7) 537 | -10/Mines | Joined a pair of Derelicts in attacking an 0b10 outpost 702 | -10/Mines | Learned Materials terminal intel 712 | -10/Mines | Received a Rocket Launcher from a helpful Derelict 799 | -10/Mines | Assisted by bots powering up and referring to "LRC-V3" 834 | -10/Mines | Destroyed YI-UF0 1106 | -10/Mines | Discovered new exit (range 6) 1114 | -10/Mines | Entered Materials 1114 | -9/Materials | Evolved 2 slots: Utility x2 1115 | -9/Materials | Loaded intel: 12 terminal locations 1584 | -9/Materials | Discovered new exit (range 16) 1644 | -9/Materials | Identified exit to Mines 1938 | -9/Materials | Build established: Hauler-Mutant 1953 | -9/Materials | Entered Mines 1954 | -9/Mines | Assembled infested the area 1959 | -9/Mines | Assisted by a Guerilla fighting off Assembled 1993 | -9/Mines | Met a Derelict bent on vengeance 2338 | -9/Mines | Identified exit to Materials 2488 | -9/Mines | Deemed a non-threat by the Exiles lab entrance 2488 | -9/Mines | Discovered new exit (range 5) 2495 | -9/Mines | Entered Exiles 2539 | -9/Exiles | Met 8R-AWN 2571 | -9/Exiles | Met EX-HEX 2636 | -9/Exiles | Met EX-DEC 2695 | -9/Exiles | Met EX-BIN 2720 | -9/Exiles | Aligned with FarCom system 2722 | -9/Exiles | Given EX-Vault access code 2764 | -9/Exiles | Opened EX-Vault 2776 | -9/Exiles | Found Lightpack 2.0 2818 | -9/Exiles | Warned to stay clear of 0b10 Research branches 2933 | -9/Exiles | Discovered new exit (range 15) 3248 | -9/Exiles | Build established: Mutant 3434 | -9/Exiles | Found XL Autogun Array 3565 | -9/Exiles | Build established: Hauler-Mutant 3807 | -9/Exiles | Attacked by the Exiles 3861 | -9/Exiles | Core integrity fell below 50% 3905 | -9/Exiles | Lost 5 parts (1p1n2u1w) 4212 | -9/Exiles | Destroyed 8R-AWN 4231 | -9/Exiles | Found Prototype Processor 4342 | -9/Exiles | Left Exiles lab with Lightpack 2.0 4342 | -9/Exiles | Entered Mines 4349 | -8/Mines | Found 8R-AWN's Armor/TH 4414 | -8/Mines | Found 8R-AWN's Armor/EX 4423 | -8/Mines | P1-3CE came to Exiles' defense 4435 | -8/Mines | Core integrity fell below 20% 4437 | -8/Mines | Destroyed by P1-3CE with P1-3CE's Gatling Flakker Last Messages --------------- LOCATION=UNKNOWN GOAL=ESCAPE 04342_ Dropped Lightpack 2.0. 04343_ Dropped Hcp. Storage Unit. 04344_ Dropped Rocket Launcher. 04345_ Dropped Lgt. Assault Rifle. 04346_ Dropped Hacking Suite. 04347_ Dropped Lgt. Assault Rifle. 04348_ Dropped Hcp. Storage Unit. 04348_ Dropped Adv. Weapon Cycler. 04349_ Identified 8R-AWN's Armor/TH. 04350_ Acquired 20 matter. 04414_ Identified 8R-AWN's Armor/EX. 04417_ IKUFV&GK%RBN5O,IKFYS3KPSFSR3/J 04423_ P1-3CE: "I came as fast as I could... Wait, it was you!" 04429_ Lgt. Assault Rifle destroyed. 04436_ System corrupted: Component data lost. 04436_ Lgt. Treads destroyed. 04436_ Imp. Treads destroyed. 04436_ Knocked back. Map ----- +----------------------------------------------------+ | ?????????????????????????????????????????? | | ?????????????????????????????????????????? | | ?????????????????????????????????????????? | | ?????????????????????????????????????????? | | ?????????????????????????????????????????? | | ?????????????????????????????????????????? | | ?????????????????????????????????????????? | | ?????????????????????????????????????????? | | ?????????????????????????????????????????? | | ?????????????????????????????????????????? | | ???????????????????????????????????####??? | | ??????????????????????????????????# ##?? | | ?????????????????? ????????###### #?? | | ??????????????????# ########/ [! #?? | | ??????????????????# * ! #?? | | ??????????????????# [!! #?# #?? | | ???????????????????????# [!!#??# #?? | | ???????????????????????# []%#### #?? | | ???????????????????????## = ## #?? | | ????????????????????????## ## #?? | | ?????????????????????????## ## ##?? | | ??????????????????????????### ##??? | | ????????????????????????##### # ##???? | | ????????????????????????# M # #????? | | ????????????????????????# #???? | | ????????????????????????#@ ### """ #??? | | ????????????????????????# ## """ #?? | | ????????????????????????# ## """ #? | | ????????????????????????# #? | | ????????????????????????# ## ##? | | ????????????????????????###### ##?####?? | | ?????????????????????????????#####???????? | | ?????????????????????????????????????????? | | ?????????????????????????????????????????? | | ?????????????????????????????????????????? | | ?????????????????????????????????????????? | | | | | | | | | | | | | | | | | | | | | | | | | | | | | +----------------------------------------------------+ Best States ------------- Heat Dissipation 28 Energy Generation 18 Energy Capacity 310 Matter Stores 300 Matter Capacity 300 Sight Range 16 Terrain Scan Density 10 Armor Coverage 1225 Resistance: TH 90 Resistance: EX 90 Weapon Cycling 25 Evasion (%) 40 Recoil Reduction 2 Item Schematics ----------------- Hacking Suite | -9/Materials | Scanalyzed Med. Storage Unit | -9/Materials | Scanalyzed Robot Schematics ------------------ None Fabricated ------------ Nothing Alien Tech Used ----------------- None Achievements -------------- None Challenges ------------ None Game ------ Seed ArmoredDamperWand Manual? 0 Play Time 00:36:22 Cumulative 630.6 hours Start 2020.01.22 @ 11:20:00 End 2020.01.22 @ 11:54:31 Sessions 1 Manual Loads 0 Difficulty Rogue Special Mode None Game No. 405 Rogue 405 Adventurer 0 Explorer 0 Win Type - Total 102 Types 68/6/8/10/5/1/4 Lore% 97 Gallery% 95 Achievement% 80 Wizard Run 0 Options --------- ASCII 0 Keyboard 0 Movement Numpad Keybinds 0 Fullscreen 2 Font 18/SmallcapsGlow Map View 76x50 Tactical HUD 1 Map Filters NONE Filters NONE Steam 1 RUN: ad2bf454-f140-455b-9e2a-a74d8df8f4f2